Cogmind - Beta 11 X10 @@@ ROGUE MODE // 2022.02.20 @ 15:15:36 Player: Tone Result: Destroyed by Y-72 Warden with Railgun Performance ------------- Evolutions (7) 3500 Regions Visited (18) 3600 Robots Destroyed (138) 690 Value Destroyed (10567) 10567 Prototype IDs (40) 800 Alien Tech Used (0) 0 Bonus (8916) 8916 TOTAL SCORE: 28073 Bonus ------- High Alert Combat Kills 1458 Follower Combat Kills 4992 Entered Garrisons 1200 Used RIF Installer 3000 Aligned with FarCom 300 Friendly Fire -2034 Cogmind --------- Core Integrity 0/1300 Matter 75/300 Energy 99/100 System Corruption 40% Temperature Cool (9) Movement Core (50) Location -3/Armory Parts ------- > --- POWER (1) -------- (None) > --- PROPULSION (2) --- (None) > --- UTILITY (15) ----- Experimental Terrain Scan Processor Relay Coupler [Sentry] (17) Relay Coupler [Hunter] (8) Relay Coupler [Heavy] (7) > --- WEAPON (3) ------- (None) > --- INVENTORY (5) ---- Biometal Leg Armored Huge Wheel Hellfire Missile Launcher Hellfire Missile Launcher Peak State ------------ > --- POWER ------------ Quantum Reactor > --- PROPULSION ------- Enhanced Biometal Leg > --- UTILITY ---------- Lightpack 2.0 Experimental Terrain Scan Processor Improved Utility Shielding Layered Medium Armor Plating Relay Coupler [NC] Relay Coupler [Swarmer] Relay Coupler [Grunt] Relay Coupler [Grunt] Relay Coupler [Brawler] Relay Coupler [Sentry] Relay Coupler [Specialist] Relay Coupler [Heavy] > --- WEAPON ----------- Guided Micro-nuke Launcher Improved Remote Datajack > --- INVENTORY -------- Light Angular Momentum Engine Improved Fusion Compressor Armored Medium Treads Advanced Heavy Treads Armored Wheel Armored Wheel Armored Huge Wheel Advanced Cooling System Advanced Coolant Injector Improved Transmission Jammer Layered Medium Armor Plating Layered Medium Armor Plating Layered Medium Armor Plating Graphene Brace Relay Coupler [NC] Relay Coupler [NC] Relay Coupler [NC] Relay Coupler [Swarmer] Relay Coupler [Swarmer] Relay Coupler [Swarmer] Relay Coupler [Swarmer] Relay Coupler [Cutter] Relay Coupler [Grunt] Relay Coupler [Grunt] Relay Coupler [Grunt] Relay Coupler [Duelist] Relay Coupler [Duelist] KE Penetrator Mini Assault Cannon Guided Micro-nuke Launcher Advanced Remote Datajack Heavy Mace Plasma Lance [Rating: 135] Favorites ----------- Power Improved Deuterium Engine Engine Improved Deuterium Engine Power Core Light Nuclear Core Reactor Antimatter Reactor Propulsion Light Treads Treads Light Treads Leg Carbon-fiber Leg Wheel Armored Wheel Hover Unit Experimental Gyrokinetic Inverter Utility High-capacity Storage Unit Device Improved Heat Sink Storage High-capacity Storage Unit Processor Improved Target Analyzer Hackware Relay Coupler [Grunt] Protection Improved Medium Armor Plating Weapon Advanced Beam Rifle Energy Gun Advanced Beam Rifle Energy Cannon Heavy Plasma Cannon Ballistic Gun Flak Gun Ballistic Cannon Mini Assault Cannon Launcher Rocket Launcher Special Weapon Improved Remote Datajack Impact Weapon Impact Mace Slashing Weapon Great Axe Piercing Weapon Plasma Lance Special Melee Weapon Improved Datajack Build | -11 -10 -10 -10 -9 -8 -8 -7 -7 -7 -7 -6 -6 -5 -5 -4 -4 -3 -3 ------- Run | Scr Mat Min Exi Min Mat Gar Fac Gar Fac Gar Fac Gar Fac Gar Fac Gar Res Arm Slots Evolved 14 | . . . . . 4 . 2 . . . 2 . 2 . 2 . 2 . Power . | . . . . . . . . . . . . . . . . . . . Propulsion . | . . . . . . . . . . . . . . . . . . . Utility 13 | . . . . . 3 . 2 . . . 2 . 2 . 2 . 2 . Weapon 1 | . . . . . 1 . . . . . . . . . . . . . Parts Attached 339 | . 5 . 3 2 24 38 22 46 12 26 23 27 14 15 1 33 47 1 Power 21 | . . . . 1 4 2 1 2 . 3 1 . . 1 . 2 4 . Engine 14 | . . . . 1 4 . . 2 . 3 1 . . 1 . 1 1 . Core 5 | . . . . . . 2 1 . . . . . . . . 1 1 . Reactor 2 | . . . . . . . . . . . . . . . . . 2 . Propulsion 52 | . 2 . . . 4 5 5 7 6 2 2 8 1 1 . 3 5 1 Treads 25 | . 2 . . . 4 2 5 1 3 2 . 4 . . . . 1 1 Leg 9 | . . . . . . . . 4 2 . . . . . . 2 1 . Wheel 16 | . . . . . . 3 . 2 1 . 2 4 1 1 . 1 1 . Hover 2 | . . . . . . . . . . . . . . . . . 2 . Flight . | . . . . . . . . . . . . . . . . . . . Utility 137 | . . . 1 1 6 14 9 11 5 6 13 9 9 8 1 19 25 . Device 18 | . . . . . 2 4 4 4 . . . . . . . 2 2 . Storage 7 | . . . 1 1 1 . 2 2 . . . . . . . . . . Processor 5 | . . . . . 1 1 . . 1 . . . 1 . . . 1 . Hackware 60 | . . . . . . 5 1 3 3 5 8 6 6 4 1 8 10 . Protection 47 | . . . . . 2 4 2 2 1 1 5 3 2 4 . 9 12 . Artifact . | . . . . . . . . . . . . . . . . . . . Weapon 129 | . 3 . 2 . 10 17 7 26 1 15 7 10 4 5 . 9 13 . Energy Gun 37 | . . . . . 5 10 5 14 . 3 . . . . . . . . Energy Cannon 5 | . . . . . 1 . . . . . 2 1 . . . 1 . . Ballistic Gun 27 | . 2 . 2 . 4 . . 1 1 5 1 2 1 1 . 4 3 . Ballistic Cannon 9 | . . . . . . 1 . 1 . 1 . 2 . 1 . 1 2 . Launcher 5 | . . . . . . . . 1 . 3 . . . . . . 1 . Special Weapon 22 | . 1 . . . . . . 6 . 2 1 3 2 2 . 1 4 . Impact Weapon 12 | . . . . . . . . 3 . . 1 2 1 1 . 2 2 . Slashing Weapon 6 | . . . . . . 2 1 . . 1 2 . . . . . . . Piercing Weapon 1 | . . . . . . . . . . . . . . . . . 1 . Special Melee Weapon 5 | . . . . . . 4 1 . . . . . . . . . . . Unidentified Prototypes 10 | . . . . . 2 . . . . 2 . . . . . . 6 . Corrupted Parts 3 | . . . . . . . . . . . . 1 . . . . 2 . System Corruption 19 | . . . . . . . . . . . . 2 . . . . 17 . Parts Lost 55 | . . . . 1 3 3 2 11 . 2 1 7 . . . 8 14 3 Power 6 | . . . . 1 . 1 . 1 . . . . . . . 1 2 . Propulsion 11 | . . . . . . . 1 2 . 1 1 4 . . . . 1 1 Utility 23 | . . . . . 1 2 1 4 . . . 1 . . . 4 8 2 Weapon 15 | . . . . . 2 . . 4 . 1 . 2 . . . 3 3 . Highest Loss Streak 13 | . . . . 1 2 1 1 11 . 2 1 5 . . . 4 12 13 To Critical Strikes 1 | . . . . . . . . 1 . . . . . . . . . . Average Slot Usage (%) 82 | . 61 42 61 88 87 88 95 79 77 81 83 85 80 81 73 83 78 29 Engine 5 | . 14 14 14 13 9 5 . 6 7 6 6 6 5 5 5 2 . . Core 1 | . . . . . . 3 7 . . . . . . . . 2 . . Treads 7 | . 28 28 28 28 18 12 5 2 4 13 7 6 4 . . . . 4 Leg 2 | . . . . . . . . 9 2 . . . . . . 4 . . Wheel 3 | . . . . . . 5 8 2 7 . 4 5 5 4 5 2 3 . Device 5 | . . . . . 10 9 10 14 4 . . . . . . 4 1 . Storage 10 | . 1 . 11 18 12 9 9 9 15 15 13 13 11 5 5 5 3 . Hackware 15 | . . . . . . 2 12 1 3 20 20 29 33 34 31 32 36 20 Protection 7 | . . . . . 8 10 15 7 7 1 8 3 . 11 10 13 11 . Energy Gun 8 | . 1 . . . 15 24 22 12 7 7 3 . . . . . . . Ballistic Gun 4 | . 15 . 6 28 9 . . 3 4 7 2 2 3 6 5 4 3 . Special Weapon 2 | . . . . . . . . 1 7 2 6 4 5 4 5 4 3 . Impact Weapon 2 | . . . . . . . . 3 2 . 2 5 3 3 5 3 2 . Naked Turns . | . . . . . . . . . . . . . . . . . . . Heaviest Build 102 | 11 3 3 27 32 79 79 102 89 88 76 80 84 86 66 36 61 69 . Greatest Support 70 | 20 3 3 40 40 40 40 48 40 12 48 48 40 28 28 28 50 28 70 Greatest Overweight (x) 8 | . . . . . 1 5 8 7 7 6 4 5 5 2 1 2 2 . Average Overweight (x) 2 | . . . . . . 1 3 3 6 1 3 4 3 1 1 . . . Largest Inventory Capacity 40 | 8 8 5 15 15 20 20 20 40 40 40 40 40 40 40 40 40 40 5 Average Capacity 31 | 8 5 5 13 15 18 20 20 26 40 40 40 40 40 40 40 40 39 5 Most Carried 40 | 6 6 5 13 15 20 20 20 40 40 40 40 39 40 40 40 40 40 5 Average Carried 28 | 6 3 5 10 14 18 19 19 21 39 39 37 35 34 38 37 37 37 2 Final Capacity 40 | 8 5 5 15 15 20 20 20 40 40 40 40 40 40 40 40 40 40 5 Final Carried 40 | 6 5 5 11 15 20 20 20 40 40 39 33 37 39 38 40 40 40 5 Class Distribution -------------------- 29% | Botlord-Mutant 24% | Bothacker-Mutant 12% | Scavenger-Mutant 9% | Scavenger-Tank 7% | Hauler-Mutant 7% | Mutant 3% | Scavenger-Gunner Dominant Class ---------------- Mutant | -10/Materials Mutant | -10/Mines Mutant | -10/Exiles Mutant | -9/Mines Scavenger-Tank | -8/Materials Scavenger-Mutant | -8/Garrison Scavenger-Tank | -7/Factory Bothacker-Mutant | -7/Garrison Bothacker-Mutant | -7/Factory Bothacker-Mutant | -7/Garrison Bothacker-Mutant | -6/Factory Botlord-Mutant | -6/Garrison Botlord-Mutant | -5/Factory Botlord-Mutant | -5/Garrison Botlord-Mutant | -4/Factory Botlord-Mutant | -4/Garrison Botlord-Mutant | -3/Research Mutant | -3/Armory Resources | -11 -10 -10 -10 -9 -8 -8 -7 -7 -7 -7 -6 -6 -5 -5 -4 -4 -3 -3 ----------- Run | Scr Mat Min Exi Min Mat Gar Fac Gar Fac Gar Fac Gar Fac Gar Fac Gar Res Arm Matter Collected 7043 | 200 35 . 81 188 273 563 310 612 175 757 370 592 270 501 46 1152 918 . Remotely . | . . . . . . . . . . . . . . . . . . . Salvage Created 7390 | . 86 . . 125 694 1637 853 961 44 541 381 393 39 273 22 1221 120 . Parts 307 | . 6 . . 4 40 73 28 47 6 28 18 7 1 10 . 32 7 . Haulers Intercepted 3 | . . . . . 3 . . . . . . . . . . . . . Recyclers Shooed 3 | . . . . . 2 . . . . . . . . . . . 1 . Parts Field Recycled . | . . . . . . . . . . . . . . . . . . . Retrieved Matter . | . . . . . . . . . . . . . . . . . . . Parts Self-Destructed . | . . . . . . . . . . . . . . . . . . . Prevented . | . . . . . . . . . . . . . . . . . . . Kills | -11 -10 -10 -10 -9 -8 -8 -7 -7 -7 -7 -6 -6 -5 -5 -4 -4 -3 -3 ------- Run | Scr Mat Min Exi Min Mat Gar Fac Gar Fac Gar Fac Gar Fac Gar Fac Gar Res Arm Combat Hostiles Destroyed 118 | . 4 . . 3 7 30 15 17 1 15 4 6 1 4 . 9 2 . Melee 5 | . . . . . . 2 . . . . 1 2 . . . . . . Guns 77 | . 4 . . 3 7 25 12 7 1 9 1 2 . 1 . 4 1 . Cannons 13 | . . . . . . 3 . . . . 2 2 1 2 . 2 1 . AOE 16 | . . . . . . . . 10 . 6 . . . . . . . . Classes Destroyed 16 | . 2 . . 1 6 2 1 . 1 . 2 . . . . . 1 . Worker 3 | . . . . . . . . . 1 . 1 . 1 . . . . . Builder 1 | . . . . . 1 . . . . . . . . . . . . . Hauler 3 | . . . . . 3 . . . . . . . . . . . . . Recycler 3 | . . . . . 2 . . . . . 1 . . . . . . . Watcher 2 | . . . . . 1 . . . . . . . . . . 1 . . Swarmer 29 | . 3 . . . . 9 . 9 1 3 . 2 . . 1 1 . . Cutter 2 | . . . . . . 2 . . . . . . . . . . . . Grunt 52 | . 1 . . 2 4 11 8 8 . 8 . 4 . 3 . 3 . . Brawler 8 | . . . . 1 1 2 2 . . 2 . . . . . . . . Duelist 4 | . . . . . . 2 . . . 2 . . . . . . . . Sentry 13 | . . . . . 1 4 4 1 . 1 . . . . . 2 . . Hunter 8 | . . . . . . . . . . . 1 . 1 1 . 4 1 . Programmer 6 | . . . . . . . 1 . . 1 2 . . 2 . . . . Heavy 1 | . . . . . 1 . . . . . . . . . . . . . Behemoth 2 | . . . . . . . . . . . 1 . . . . 1 . . Striker 1 | . . . . . . . . . . . . . . . . . 1 . Best Kill Streak 10 | . 4 . . 2 3 4 3 10 2 5 2 2 1 3 . 3 2 . Combat Bots Only 10 | . 4 . . 2 2 4 3 10 1 5 1 2 1 3 . 3 2 . Max Kills in Single Turn 3 | . 1 . . 1 2 2 1 3 1 3 1 1 1 1 1 1 1 . Gunslinging 1 | . . . . . . 1 . 1 . 1 . . . . . . . . Exploded 3 | . . . . . . . . 3 . 3 . . . . . . . . Melee 1 | . . . . . . 1 . . . . 1 1 . . . . . . Uniques/NPCs Destroyed . | . . . . . . . . . . . . . . . . . . . Combat | -11 -10 -10 -10 -9 -8 -8 -7 -7 -7 -7 -6 -6 -5 -5 -4 -4 -3 -3 -------- Run | Scr Mat Min Exi Min Mat Gar Fac Gar Fac Gar Fac Gar Fac Gar Fac Gar Res Arm Damage Taken 14563 | . 167 . . 203 723 1402 1083 1351 66 1076 601 815 332 179 18 1893 3816 838 Core 2577 | . 44 . . . 33 114 108 243 . 225 69 149 68 . . 198 1024 302 Absorbed by Shields . | . . . . . . . . . . . . . . . . . . . Redirected to Shielding 175 | . . . . . . . . . . . . . . . . 89 86 . Regen/Repaired (Parts) 89 | . . . . . . . . . . . . . . . . . 89 . Core Remaining (%) 74 | 100 . . . 82 . 73 . . . 17 . 74 . 93 . 82 . . Volleys Fired 785 | . 10 . 4 12 43 71 49 116 11 82 46 66 29 30 6 142 68 . Largest 3 | . 2 . 1 2 3 3 3 3 2 3 2 3 2 2 1 3 3 . Hottest 201 | . 40 . 20 40 183 183 201 201 109 189 109 146 76 76 33 171 114 . Shots Fired 1184 | . 20 . 4 24 114 142 143 140 14 116 47 79 37 39 6 168 91 . Gun 784 | . 20 . 4 24 111 127 143 118 6 88 7 18 9 13 2 67 27 . Cannon 142 | . . . . . 3 15 . 5 . . 10 34 8 8 . 44 15 . Launcher 16 | . . . . . . . . 7 . 9 . . . . . . . . Special 242 | . . . . . . . . 10 8 19 30 27 20 18 4 57 49 . Kinetic 361 | . 20 . 4 24 48 15 . 12 3 34 1 21 17 21 2 97 42 . Thermal 565 | . . . . . 66 127 143 111 3 54 16 31 . . . 14 . . Explosive 16 | . . . . . . . . 7 . 9 . . . . . . . . Electromagnetic . | . . . . . . . . . . . . . . . . . . . Robot Hit Streak 47 | . 5 . . 8 11 10 15 47 12 8 12 17 13 8 2 38 9 . Robot Miss Streak 10 | . 1 . . 3 3 4 3 10 4 4 5 5 5 5 3 3 2 . Penetration Max 1 | . . . . . 1 . . . . . . . . . 1 1 . . Secondary Targets 15 | . . . . 2 1 7 . 3 . 2 . . . . . . . . Max Gunslinging Chain 1 | . . . . 1 1 1 . 1 . 1 . . . . . . . . Shots Hit Robots 899 | . 15 . . 15 72 108 106 106 13 73 46 70 33 36 3 138 65 . Core Hits 348 | . 7 . . 6 29 45 36 52 4 63 6 36 7 12 2 33 10 . Critical Kills 5 | . . . . . 1 . . . . . . . . . . 4 . . Critical Parts Destroyed 7 | . . . . . . . . . . . . . 1 1 . 5 . . Critical Strikes 39 | . . . . . 3 9 11 3 . 1 . . 2 1 . 9 . . Burn 22 | . . . . . 2 6 11 3 . . . . . . . . . . Meltdown 1 | . . . . . . . . . . . . . . . . 1 . . Destroy 5 | . . . . . 1 . . . . . . . . . . 4 . . Blast 3 | . . . . . . 2 . . . . . . 1 . . . . . Smash 6 | . . . . . . . . . . . . . 1 1 . 4 . . Sever 2 | . . . . . . 1 . . . 1 . . . . . . . . Melee Attacks 283 | . . . . . . 41 4 38 . 13 16 68 6 41 1 49 6 . Impact 214 | . . . . . . . . 38 . . 5 68 6 41 1 49 6 . Slashing 54 | . . . . . . 28 2 . . 13 11 . . . . . . . Piercing . | . . . . . . . . . . . . . . . . . . . Sneak Attacks 36 | . . . . . . 8 2 . . . 10 4 2 1 1 8 . . Combat Hostiles 17 | . . . . . . . . . . . 9 3 . . . 5 . . Follow-up Attacks . | . . . . . . . . . . . . . . . . . . . Damage Inflicted 20099 | . 203 . . 211 1280 3328 2243 2937 100 1987 1371 1852 476 428 259 2831 581 12 Guns 10423 | . 200 . . 187 1257 1360 2226 2022 100 1053 102 387 85 141 46 848 409 . Cannons 2615 | . . . . . . 405 . 214 . . 156 881 88 153 . 546 172 . Explosions 1558 | . . . . . . . . 701 . 857 . . . . . . . . Melee 5419 | . . . . . . 1558 . . . 77 1113 584 303 134 213 1437 . . Ramming 84 | . 3 . . 24 23 5 17 . . . . . . . . . . 12 Kinetic 4842 | . 200 . . 187 477 405 . 297 28 537 6 472 173 294 46 1139 581 . Thermal 8196 | . . . . . 780 1360 2226 1939 72 516 252 796 . . . 255 . . Explosive 1558 | . . . . . . . . 701 . 857 . . . . . . . . Electromagnetic . | . . . . . . . . . . . . . . . . . . . Impact 2782 | . . . . . . . . . . . 111 584 303 134 213 1437 . . Slashing 2637 | . . . . . . 1558 . . . 77 1002 . . . . . . . Piercing . | . . . . . . . . . . . . . . . . . . . Highest Corruption 40 | . . . . . . . . . 3 3 . 2 . . . 1 37 40 Average Corruption 4 | . . . . . . . . . 2 3 . 2 . . . 1 22 39 Corruption Purged . | . . . . . . . . . . . . . . . . . . . Corruption Blocked . | . . . . . . . . . . . . . . . . . . . Effects 75 | . . . . . . . . . 5 42 . . . . . 6 14 8 Message Errors 12 | . . . . . . . . . 2 3 . . . . . . 5 2 Matter Fused 23 | . . . . . . . . . . 16 . . . . . 3 3 1 Heat Flow Errors 1 | . . . . . . . . . . . . . . . . 1 . . Energy Discharges 10 | . . . . . . . . . 2 5 . . . . . . 3 . Parts Rejected 1 | . . . . . . . . . . . . . . . . . . 1 Data Loss (minor) 9 | . . . . . . . . . 1 7 . . . . . 1 . . Data Loss (major) 3 | . . . . . . . . . . 2 . . . . . 1 . . Misfires 6 | . . . . . . . . . . 5 . . . . . . 1 . Alerts 4 | . . . . . . . . . . 2 . . . . . . 1 1 Misdirections 4 | . . . . . . . . . . . . . . . . . 1 3 Weapon Failures 2 | . . . . . . . . . . 2 . . . . . . . . Overload Shots . | . . . . . . . . . . . . . . . . . . . Overflow Damage 1842 | . . . . . . 176 . 1 . 30 141 358 243 29 163 701 . . Projectiles 92 | . . . . . . 50 . . . . 33 . . . . 9 . . Explosions 31 | . . . . . . . . 1 . 30 . . . . . . . . Melee 1719 | . . . . . . 126 . . . . 108 358 243 29 163 692 . . Knockbacks 16 | . . . . 1 . 3 . . . . . 3 1 . 1 3 4 . Impact 6 | . . . . 1 . . . . . . . 2 1 . 1 1 . . Kinetic 9 | . . . . . . 3 . . . . . 1 . . . 1 4 . Secondary 1 | . . . . . . . . . . . . . . . . 1 . . Self-Inflicted Damage 84 | . . . . . . . 5 44 . 29 . . . . . . . 6 Shots 4 | . . . . . . . . 3 . 1 . . . . . . . . Rammed 16 | . 1 . . 3 2 1 4 . . . . . . . . . . 5 Targets Rammed 17 | . 1 . . 3 2 2 4 . . . . . . . . . . 5 Kicked . | . . . . . . . . . . . . . . . . . . . Crushed 1 | . . . . . . 1 . . . . . . . . . . . . Highest Temperature 526 | . 2 . . . 241 355 526 351 124 405 181 331 1 . . 298 345 12 Average Temperature 113 | . 2 . . . 75 127 146 110 67 98 62 93 1 . . 131 154 12 Received Heat Transfer 2706 | . 48 . . 90 144 477 483 345 . 282 54 335 42 36 9 93 87 181 Effects 19 | . . . . . . 3 6 6 . . . 2 . . . . 2 . Energy Bleed 4 | . . . . . . . 3 1 . . . . . . . . . . Interference 9 | . . . . . . 2 1 4 . . . 2 . . . . . . Matter Decay 4 | . . . . . . 1 2 . . . . . . . . . 1 . Short Circuit 2 | . . . . . . . . 1 . . . . . . . . 1 . Siege Activations . | . . . . . . . . . . . . . . . . . . . Robots Corrupted . | . . . . . . . . . . . . . . . . . . . Combat Hostiles . | . . . . . . . . . . . . . . . . . . . Parts Fried 7 | . . . . . . . . . . 1 . 1 1 . . 4 . . Impact Corruptions 23 | . . . . . . . . . . . . 6 3 1 3 10 . . Robots Melted 4 | . . . . . . . 3 . . . . . . . . 1 . . Combat Hostiles 4 | . . . . . . . 3 . . . . . . . . 1 . . Parts Melted 33 | . . . . . 7 7 16 . . . 1 . . . . 2 . . Heat Transferred 14742 | . . . . . 1591 2941 4228 3319 111 644 309 1199 . . . 400 . . Parts Sabotaged . | . . . . . . . . . . . . . . . . . . . Parts Stolen . | . . . . . . . . . . . . . . . . . . . Parts Stripped . | . . . . . . . . . . . . . . . . . . . Power Chain Reactions . | . . . . . . . . . . . . . . . . . . . Missiles Intercepted . | . . . . . . . . . . . . . . . . . . . Alert | -11 -10 -10 -10 -9 -8 -8 -7 -7 -7 -7 -6 -6 -5 -5 -4 -4 -3 -3 ------- Run | Scr Mat Min Exi Min Mat Gar Fac Gar Fac Gar Fac Gar Fac Gar Fac Gar Res Arm Peak Influence 1415 | . 180 70 . 81 496 1415 911 1237 789 983 515 315 200 332 174 334 285 186 Initial 742 | . . 70 . . . 302 742 571 648 375 515 5 165 21 174 100 187 . Average 556 | . 95 70 . 34 336 995 782 1073 625 716 172 216 102 225 144 161 147 58 Maximum Alert Level 4 | . . . . . 2 4 3 4 3 3 2 1 1 1 . 1 1 . Low Security (%) 31 | 100 100 100 . 100 21 . . . . . 67 39 97 25 100 88 75 100 Level 1 15 | . . . . . 26 4 . . . 2 6 60 2 74 . 11 24 . Level 2 14 | . . . . . 51 18 . 9 80 35 26 . . . . . . . Level 3 23 | . . . . . . 30 100 40 19 62 . . . . . . . . Level 4 15 | . . . . . . 47 . 50 . . . . . . . . . . Level 5 . | . . . . . . . . . . . . . . . . . . . High Security . | . . . . . . . . . . . . . . . . . . . Max Security . | . . . . . . . . . . . . . . . . . . . Squads Dispatched 39 | . 2 . . . 3 . 6 . 3 . 6 . 5 . 2 . 11 1 Investigation 8 | . 2 . . . 1 . . . 1 . . . 1 . 1 . 2 . Extermination 7 | . . . . . . . 1 . 1 . 2 . 1 . . . 2 . Reinforcement 17 | . . . . . 2 . 1 . . . 4 . 3 . . . 6 1 Assault 2 | . . . . . . . 1 . . . . . . . . . 1 . Garrison 5 | . . . . . . . 3 . 1 . . . . . 1 . . . Intercept . | . . . . . . . . . . . . . . . . . . . Construction Impeded . | . . . . . . . . . . . . . . . . . . . Haulers Reinforced . | . . . . . . . . . . . . . . . . . . . Active Scanning Responses . | . . . . . . . . . . . . . . . . . . . Cargo Convoy Interrupts 1 | . . . . . . . . . . . . . . . . . 1 . Alert ID Control Effect 88 | . . . . . . . . . . 8 6 11 9 11 3 16 24 . Stealth | -11 -10 -10 -10 -9 -8 -8 -7 -7 -7 -7 -6 -6 -5 -5 -4 -4 -3 -3 --------- Run | Scr Mat Min Exi Min Mat Gar Fac Gar Fac Gar Fac Gar Fac Gar Fac Gar Res Arm Distress Signals 10 | . 1 . . . 1 . . . 2 . . . 1 . . . 5 . Communications Jammed . | . . . . . . . . . . . . . . . . . . . Distress Signals . | . . . . . . . . . . . . . . . . . . . Times Spotted 436 | . 8 . . 5 25 47 21 28 18 44 17 29 24 27 6 41 76 20 Peak Tracking Total 22 | . 5 . 9 3 3 5 5 7 4 6 2 7 4 7 5 5 22 12 Tactical Retreats 26 | . . . . . . 8 2 1 . 7 . 2 . 1 . . 3 2 Traps | -11 -10 -10 -10 -9 -8 -8 -7 -7 -7 -7 -6 -6 -5 -5 -4 -4 -3 -3 ------- Run | Scr Mat Min Exi Min Mat Gar Fac Gar Fac Gar Fac Gar Fac Gar Fac Gar Res Arm Traps Triggered 47 | . 1 . . . 1 13 . 7 2 8 . 9 1 2 . 2 1 . Indirectly . | . . . . . . . . . . . . . . . . . . . Trap Hack Attempts . | . . . . . . . . . . . . . . . . . . . Triggered . | . . . . . . . . . . . . . . . . . . . Disarmed . | . . . . . . . . . . . . . . . . . . . Reprogrammed . | . . . . . . . . . . . . . . . . . . . Reused . | . . . . . . . . . . . . . . . . . . . Traps Extracted . | . . . . . . . . . . . . . . . . . . . Installed . | . . . . . . . . . . . . . . . . . . . Triggered . | . . . . . . . . . . . . . . . . . . . Machines | -11 -10 -10 -10 -9 -8 -8 -7 -7 -7 -7 -6 -6 -5 -5 -4 -4 -3 -3 ---------- Run | Scr Mat Min Exi Min Mat Gar Fac Gar Fac Gar Fac Gar Fac Gar Fac Gar Res Arm Machines Disabled 31 | . . . 1 . 1 5 . 5 . 6 . 4 . 5 . 4 . . Max in Single Turn 1 | . . . 1 . . 1 . 1 . 1 . 1 . 1 . 1 . . Garrison Access 1 | . . . . . . . . . . . . . . . . . 1 . Garrison Relay 27 | . . . . . . 5 . 5 . 4 . 4 . 4 . 5 . . Machines Sabotaged . | . . . . . . . . . . . . . . . . . . . Garrisons Compromised . | . . . . . . . . . . . . . . . . . . . Overloaded Fab Kills . | . . . . . . . . . . . . . . . . . . . Hacking | -11 -10 -10 -10 -9 -8 -8 -7 -7 -7 -7 -6 -6 -5 -5 -4 -4 -3 -3 --------- Run | Scr Mat Min Exi Min Mat Gar Fac Gar Fac Gar Fac Gar Fac Gar Fac Gar Res Arm Machines Accessed 22 | . 2 . 2 . 3 . 3 . 3 . 1 . 2 . 1 . 4 1 Terminals 6 | . 1 . . . . . 1 . 1 . . . . . . . 2 1 Fabricators 2 | . . . . . . . 1 . 1 . . . . . . . . . Repair Stations 2 | . . . . . . . . . . . . . 1 . . . 1 . Recycling Units 2 | . 1 . . . 1 . . . . . . . . . . . . . Scanalyzers 1 | . . . . . 1 . . . . . . . . . . . . . Garrison Access 7 | . . . . . 1 . 1 . 1 . 1 . 1 . 1 . 1 . Total Hacks 53 | . 10 . 2 . 8 . 7 . 8 . 2 . 4 . 3 . 7 2 Successful 36 | . 5 . 2 . 6 . 2 . 6 . 2 . 4 . 3 . 5 1 Failed 17 | . 5 . . . 2 . 5 . 2 . . . . . . . 2 1 Catastrophic 5 | . 1 . . . . . 1 . 2 . . . . . . . 1 . Database Lockouts . | . . . . . . . . . . . . . . . . . . . Manual 23 | . 8 . 1 . 1 . 4 . 4 . . . 2 . 1 . 1 1 Terminals 19 | . 8 . . . . . 4 . 2 . . . . . . . 3 2 Fabricators 3 | . . . . . . . 1 . 2 . . . . . . . . . Repair Stations 3 | . . . . . . . . . . . . . 1 . . . 2 . Recycling Units 3 | . 2 . . . 1 . . . . . . . . . . . . . Scanalyzers 3 | . . . . . 3 . . . . . . . . . . . . . Garrison Access 20 | . . . . . 4 . 2 . 4 . 2 . 3 . 3 . 2 . Terminal Hacks 8 | . 3 . 2 . . . . . 1 . . . . . . . 1 1 Record 1 | . . . 1 . . . . . . . . . . . . . . . Part Schematic 1 | . 1 . . . . . . . . . . . . . . . . . Robot Analysis 1 | . 1 . . . . . . . . . . . . . . . . . Level Access Points 1 | . . . . . . . . . . . . . . . . . 1 . Branch Access Points 1 | . 1 . . . . . . . . . . . . . . . . . Terminal Index 1 | . . . . . . . . . . . . . . . . . . 1 Unreport Threat 1 | . . . . . . . . . 1 . . . . . . . . . EX-Prototype ID Bank 1 | . . . 1 . . . . . . . . . . . . . . . Fabricator Hacks 1 | . . . . . . . . . 1 . . . . . . . . . Network Status 1 | . . . . . . . . . 1 . . . . . . . . . Repair Station Hacks 2 | . . . . . . . . . . . . . . . . . 2 . Scan Component 1 | . . . . . . . . . . . . . . . . . 1 . Repair 1 | . . . . . . . . . . . . . . . . . 1 . Recycling Unit Hacks . | . . . . . . . . . . . . . . . . . . . Scanalyzer 3 | . . . . . 3 . . . . . . . . . . . . . Insert Component 1 | . . . . . 1 . . . . . . . . . . . . . Analyze 2 | . . . . . 2 . . . . . . . . . . . . . Garrison Access Hacks 13 | . . . . . 2 . 2 . 2 . 2 . 2 . 2 . 1 . Unlock Access 7 | . . . . . 1 . 1 . 1 . 1 . 1 . 1 . 1 . Coupler Status 6 | . . . . . 1 . 1 . 1 . 1 . 1 . 1 . . . Unauthorized Hacks 9 | . 2 . . . 1 . . . 2 . . . 2 . 1 . 1 . Terminals 1 | . 1 . . . . . . . . . . . . . . . . . Botnet 1 | . 1 . . . . . . . . . . . . . . . . . Fabricators 1 | . . . . . . . . . 1 . . . . . . . . . Haulers 1 | . . . . . . . . . 1 . . . . . . . . . Repair Stations 1 | . . . . . . . . . . . . . 1 . . . . . Mechanics 1 | . . . . . . . . . . . . . 1 . . . . . Recycling Units 2 | . 1 . . . 1 . . . . . . . . . . . . . Tunnel 2 | . 1 . . . 1 . . . . . . . . . . . . . Scanalyzers . | . . . . . . . . . . . . . . . . . . . Garrison Access 4 | . . . . . . . . . 1 . . . 1 . 1 . 1 . Eject 4 | . . . . . . . . . 1 . . . 1 . 1 . 1 . Data Cores Recovered . | . . . . . . . . . . . . . . . . . . . Used . | . . . . . . . . . . . . . . . . . . . Hacking Detections 14 | . 1 . . . 2 . 2 . 2 . 1 . 1 . 1 . 3 1 Full Trace Events . | . . . . . . . . . . . . . . . . . . . Feedback Events . | . . . . . . . . . . . . . . . . . . . Feedback Blocked . | . . . . . . . . . . . . . . . . . . . Robot Schematics Acquired . | . . . . . . . . . . . . . . . . . . . Robots Built . | . . . . . . . . . . . . . . . . . . . Authchips . | . . . . . . . . . . . . . . . . . . . Time . | . . . . . . . . . . . . . . . . . . . Total Robot Build Rating . | . . . . . . . . . . . . . . . . . . . Part Schematics Acquired 2 | . 1 . . . 1 . . . . . . . . . . . . . Parts Built . | . . . . . . . . . . . . . . . . . . . Authchips . | . . . . . . . . . . . . . . . . . . . Time . | . . . . . . . . . . . . . . . . . . . Total Part Build Rating . | . . . . . . . . . . . . . . . . . . . Parts Repaired 1 | . . . . . . . . . . . . . . . . . 1 . Time 38 | . . . . . . . . . . . . . . . . . 38 . Parts Recycled . | . . . . . . . . . . . . . . . . . . . Recycled Matter . | . . . . . . . . . . . . . . . . . . . Retrieved Matter . | . . . . . . . . . . . . . . . . . . . Retrieved Components . | . . . . . . . . . . . . . . . . . . . Parts Scanalyzed 1 | . . . . . 1 . . . . . . . . . . . . . Part Schematics Acquired 1 | . . . . . 1 . . . . . . . . . . . . . Parts Damaged . | . . . . . . . . . . . . . . . . . . . Bothacking | -11 -10 -10 -10 -9 -8 -8 -7 -7 -7 -7 -6 -6 -5 -5 -4 -4 -3 -3 ------------ Run | Scr Mat Min Exi Min Mat Gar Fac Gar Fac Gar Fac Gar Fac Gar Fac Gar Res Arm Used RIF Installer 6 | . . . . . . 1 . 1 . 1 . 1 . 1 . 1 . . Command Fork 1 | . . . . . . . . . . . . 1 . . . . . . Patrol Navigation 1 | . . . . . . . . . . . . . . 1 . . . . Alert ID Control 1 | . . . . . . . . . . 1 . . . . . . . . Program Shield 1 | . . . . . . . . 1 . . . . . . . . . . Autooverride 1 | . . . . . . . . . . . . . . . . 1 . . Robots Hacked 127 | . . . . . . 4 1 6 8 10 11 13 13 10 3 23 25 . Non-combat 20 | . . . . . . . 1 . 5 . 3 . 3 . . . 8 . Combat 107 | . . . . . . 4 . 6 3 10 8 13 10 10 3 23 17 . Autooverrided 4 | . . . . . . . . . . . . . . . . 2 2 . Robot Hacks Applied 135 | . . . . . . 4 1 6 8 12 18 13 13 10 3 22 25 . parse_system 8 | . . . . . . . . . . 2 1 1 . . . 2 2 . start_evac 1 | . . . . . . . . . . . . . . . . . 1 . drop_inventory 7 | . . . . . . . 1 . 4 . 2 . . . . . . . ignore_parts 4 | . . . . . . . . . . . . . 1 . . . 3 . purge_threat 2 | . . . . . . . . . . . 2 . . . . . . . map_route 5 | . . . . . . . . . 1 . . . 1 . . . 3 . find_garrison 1 | . . . . . . . . . . . . . . . . . 1 . reboot_propulsion 1 | . . . . . . . . . . . 1 . . . . . . . overload_power 1 | . . . . . . . . . . . . . . . . 1 . . amplify_resonance 3 | . . . . . . . . . . . . 1 1 . . 1 . . wipe_record 5 | . . . . . . 1 . . . . 4 . . . . . . . reboot_system 6 | . . . . . . . . . . . 1 2 . . . 1 2 . go_dormant 1 | . . . . . . . . . . . . . . . . 1 . . overwrite_iff 38 | . . . . . . 1 . 1 . 4 . 6 4 7 3 8 4 . formatsys_low 3 | . . . . . . . . . . . 1 . 1 . . . 1 . formatsys_high 49 | . . . . . . 2 . 5 3 6 6 3 5 3 . 8 8 . Relay Couplers Released 118 | . . . . . . 20 . 18 3 15 . 15 3 18 3 19 4 . Ejected 13 | . . . . . . . . . 3 . . . 3 . 3 . 4 . Machine Destruction 105 | . . . . . . 20 . 18 . 15 . 15 . 18 . 19 . . Attached 60 | . . . . . . 5 1 3 3 5 8 6 6 4 1 8 10 . Fabnet Peak Effective % . | . . . . . . . . . . . . . . . . . . . Robots Rewired 30 | . . . . . . 6 . 6 . 6 . . . . . 12 . . Allies Hacked . | . . . . . . . . . . . . . . . . . . . Hacks Repelled . | . . . . . . . . . . . . . . . . . . . Allies | -11 -10 -10 -10 -9 -8 -8 -7 -7 -7 -7 -6 -6 -5 -5 -4 -4 -3 -3 -------- Run | Scr Mat Min Exi Min Mat Gar Fac Gar Fac Gar Fac Gar Fac Gar Fac Gar Res Arm Total Allies 135 | . . . . 3 . 9 . 12 3 16 7 12 11 10 3 33 16 . Largest Group 16 | . . . . 3 3 6 . 6 5 6 3 5 5 7 5 15 16 . Highest-Rated Group 696 | . . . . 40 40 96 . 84 72 180 118 178 192 212 180 683 696 . Highest-Rated Ally 89 | . . . . 16 16 16 . 32 32 32 46 47 49 49 49 56 89 . Total Orders 14 | . . . . . . . . 2 . . 4 . 2 2 . 4 . . STAY 7 | . . . . . . . . 1 . . 2 . 1 1 . 2 . . FOLLOW 7 | . . . . . . . . 1 . . 2 . 1 1 . 2 . . Ally Attacks 925 | . . . . 19 87 48 . 27 48 80 38 66 69 91 22 103 227 . Total Damage 22493 | . . . . 247 793 545 . 605 593 1752 1275 1544 1501 1548 526 3141 8423 . Kills 155 | . . . . 3 11 8 . 5 12 16 6 16 11 11 3 17 36 . Allies Corrupted 5 | . . . . . . . . . 1 1 . . . . 1 1 1 . Allies Melted 3 | . . . . . . . . 1 . . . 1 . . . . 1 . Turrets Deployed 1 | . . . . . . . . 1 . . . . . . . . . . Intel | -11 -10 -10 -10 -9 -8 -8 -7 -7 -7 -7 -6 -6 -5 -5 -4 -4 -3 -3 ------- Run | Scr Mat Min Exi Min Mat Gar Fac Gar Fac Gar Fac Gar Fac Gar Fac Gar Res Arm Robot Analysis Total 1 | . 1 . . . . . . . . . . . . . . . . . Derelict Logs Recovered 1 | . . . . 1 . . . . . . . . . . . . . . Drone Launches . | . . . . . . . . . . . . . . . . . . . Drone Recoveries . | . . . . . . . . . . . . . . . . . . . Exploration | -11 -10 -10 -10 -9 -8 -8 -7 -7 -7 -7 -6 -6 -5 -5 -4 -4 -3 -3 ------------- Run | Scr Mat Min Exi Min Mat Gar Fac Gar Fac Gar Fac Gar Fac Gar Fac Gar Res Arm Turns Passed 22038 | 5 80 33 403 910 741 3262 990 3733 756 2324 1521 2169 609 1344 77 2155 835 91 Spaces Moved 10727 | 5 72 66 317 537 252 1440 412 1372 364 803 656 1049 323 958 54 1287 606 154 Core 410 | . 72 66 110 . . . . . . . . . . . . . 9 153 Treads 2914 | . . . 207 537 252 753 71 218 . 671 202 2 . . . . . 1 Legs 1121 | 5 . . . . . . . 556 . . . . . . . 560 . . Wheels 6072 | . . . . . . 687 341 598 364 132 454 1047 323 958 54 727 387 . Hover 210 | . . . . . . . . . . . . . . . . . 210 . Flight . | . . . . . . . . . . . . . . . . . . . Fastest Speed 50 | 120 50 50 50 160 160 120 120 135 180 180 160 160 130 115 115 100 50 50 Average Speed 166 | 120 50 50 121 160 214 185 162 230 190 233 189 161 154 115 115 126 97 50 Slowest Speed 320 | 120 50 50 160 160 245 245 320 320 195 245 320 245 175 130 115 190 130 145 Overloaded Moves . | . . . . . . . . . . . . . . . . . . . Propulsion Burnouts . | . . . . . . . . . . . . . . . . . . . Robots Hopped . | . . . . . . . . . . . . . . . . . . . Cave-ins Triggered . | . . . . . . . . . . . . . . . . . . . Exploration Rate (%) 45 | 2 24 23 69 90 29 86 10 83 13 83 14 94 11 96 2 91 26 20 Regions Visited 18 Branch Regions 4 Pre-discovered Areas 3 | . 1 . 1 . 1 . . . . . . . . . . . . . Known Exits Taken 7 | . 1 . . . 1 . 1 . 1 . 1 . 1 . 1 . . . Unknown Exits Taken 5 | 1 . 1 1 1 . . . . . . . . . . . . 1 . Scrap Searched 1 | . . . . 1 . . . . . . . . . . . . . . Spaces Dug 123 | . . . . . 2 6 2 31 . 7 7 41 4 11 . 9 3 . Terrain Destroyed 280 | . . . . . 2 9 2 93 . 91 10 41 8 11 . 9 4 . Melee 100 | . . . . . . . 2 19 . 7 4 41 4 11 . 9 3 . Projectile 27 | . . . . . 2 9 . 4 . 1 6 . 4 . . . 1 . AOE 153 | . . . . . . . . 70 . 83 . . . . . . . . Terrain Rammed 1 | . . . . . . . . . . . . . . . . . . 1 Walls Destroyed . | . . . . . . . . . . . . . . . . . . . Machines Disabled . | . . . . . . . . . . . . . . . . . . . Actions | -11 -10 -10 -10 -9 -8 -8 -7 -7 -7 -7 -6 -6 -5 -5 -4 -4 -3 -3 --------- Run | Scr Mat Min Exi Min Mat Gar Fac Gar Fac Gar Fac Gar Fac Gar Fac Gar Res Arm Total 13621 | 4 99 65 330 562 367 1861 613 1766 420 1148 885 1348 402 1101 64 1620 802 164 Wait 686 | . 1 . . 4 4 207 107 47 4 61 117 51 10 15 . 29 29 . Move 10712 | 4 71 65 316 536 252 1439 412 1371 363 802 656 1048 322 957 53 1286 605 154 Hop . | . . . . . . . . . . . . . . . . . . . Pick Up 271 | . 1 . 7 5 17 12 2 46 16 36 14 21 11 20 3 40 17 3 Fast Attach 104 | . 1 . . 1 15 14 8 20 3 6 7 2 3 . . 10 13 1 Attach 113 | . 4 . 3 1 3 5 3 11 2 8 9 12 7 8 1 14 22 . Detach 50 | . 4 . . . 1 6 1 12 2 3 . 1 4 . . 2 14 . Swap 122 | . . . . . 6 19 11 15 7 12 7 13 4 7 . 9 12 . Drop 185 | . 6 . . . 24 18 12 25 12 23 13 2 6 7 . 22 15 . Fire 785 | . 10 . 4 12 43 71 49 116 11 82 46 66 29 30 6 142 68 . Melee 283 | . . . . . . 41 4 38 . 13 16 68 6 41 1 49 6 . Ram 3 | . . . . . . . 1 . . . . . . . . . 1 1 Kick . | . . . . . . . . . . . . . . . . . . . Crush 16 | . 1 . . 3 2 2 3 . . . . . . . . . . 5 Escape Stasis 174 | . . . . . . 24 . 32 . 22 . 64 . 16 . 16 . . Rewire 117 | . . . . . . 3 . 33 . 80 . . . . . 1 . . Trap . | . . . . . . . . . . . . . . . . . . . Miscellaneous . | . . . . . . . . . . . . . . . . . . . Route ------- -11/Scrapyard -10/Materials (discovered 2 exits: *Min x2) -10/Mines -10/Exiles -9/Mines -8/Materials (discovered 2 exits: *Fac / Gar) -8/Garrison (discovered 3 exits: *Fac x3) -7/Factory (discovered 2 exits: [*Low] / Gar) -7/Garrison (discovered 3 exits: *Fac x3) -7/Factory -7/Garrison (discovered 3 exits: *Fac x3) -6/Factory -6/Garrison (discovered 3 exits: *Fac x3) -5/Factory (discovered 2 exits: *Fac / Gar) -5/Garrison (discovered 3 exits: *Fac x3) -4/Factory -4/Garrison (discovered 3 exits: *Res x3) -3/Research (discovered 4 exits: Res x3 / *Arm) -3/Armory (discovered 1 exit: *Res) History --------- Turn | Location | Event 1 | -11/Scrapyard | Discovered new exit (range 3) 6 | -11/Scrapyard | Entered Materials 69 | -10/Materials | Identified exit to Mines 86 | -10/Materials | Entered Mines 117 | -10/Mines | Deemed a non-threat by the Exiles lab entrance 117 | -10/Mines | Discovered new exit (range 5) 119 | -10/Mines | Entered Exiles 132 | -10/Exiles | Met 8R-AWN 141 | -10/Exiles | Met EX-HEX 155 | -10/Exiles | Met EX-BIN 161 | -10/Exiles | Aligned with FarCom system 161 | -10/Exiles | Given EX-Vault access code 173 | -10/Exiles | Opened EX-Vault 176 | -10/Exiles | Found Deploy-a-Sentry 178 | -10/Exiles | Found Deploy-a-Sentry 181 | -10/Exiles | Found Deploy-a-Sentry 185 | -10/Exiles | Found Superbattery 189 | -10/Exiles | Found Lightpack 2.0 222 | -10/Exiles | Warned to stay clear of 0b10 Research branches 267 | -10/Exiles | Met EX-DEC 310 | -10/Exiles | Build established: Mutant 365 | -10/Exiles | Learned location of Zion (-7) 444 | -10/Exiles | Discovered new exit (range 10) 486 | -10/Exiles | Attacked by the Exiles 522 | -10/Exiles | Stole three prototypes: Lightpack 2.0, Superbattery, Deploy-a-Sentry 522 | -10/Exiles | Entered Mines 604 | -9/Mines | Met a Derelict bent on vengeance 651 | -9/Mines | Learned 8 Materials zone layouts 782 | -9/Mines | Received a Rocket Launcher from a helpful Derelict 901 | -9/Mines | Assisted by bots powering up and referring to "LRC-V3" 1058 | -9/Mines | Discovered new exit (range 12) 1432 | -9/Mines | Entered Materials 1432 | -8/Materials | Accompanied by 3 allies 1432 | -8/Materials | Evolved 4 slots: Utility x3, Weapon x1 1830 | -8/Materials | Discovered new exit (range 15) 2132 | -8/Materials | Build established: Scavenger-Tank 2173 | -8/Materials | Identified exit to Garrison 2173 | -8/Materials | Entered Garrison 2173 | -8/Garrison | Accompanied by 1 ally 2186 | -8/Garrison | Installed Relay Interface Framework 2226 | -8/Garrison | Triggered checkpoint 2311 | -8/Garrison | Garrison Relay disabled 2408 | -8/Garrison | Triggered checkpoint 2444 | -8/Garrison | Build established: Scavenger-Mutant 2526 | -8/Garrison | Garrison Relay disabled 2613 | -8/Garrison | Triggered checkpoint 2703 | -8/Garrison | Spotted B-75 Beast 2703 | -8/Garrison | Spotted B-75 Beast 2912 | -8/Garrison | Triggered checkpoint 2960 | -8/Garrison | Garrison Relay disabled 3021 | -8/Garrison | Discovered new exit (range 10) 3458 | -8/Garrison | Triggered checkpoint 3550 | -8/Garrison | Triggered checkpoint 3592 | -8/Garrison | Triggered checkpoint 3775 | -8/Garrison | Garrison Relay disabled 3899 | -8/Garrison | Triggered checkpoint 4060 | -8/Garrison | Triggered checkpoint 4109 | -8/Garrison | Garrison Relay disabled 4202 | -8/Garrison | Discovered new exit (range 13) 4899 | -8/Garrison | Discovered new exit (range 12) 5246 | -8/Garrison | Build established: Scavenger-Tank 5435 | -8/Garrison | Entered Factory 5435 | -7/Factory | Evolved 2 slots: Utility x2 5828 | -7/Factory | Discovered new exit (range 5) 5835 | -7/Factory | First assault squad dispatched 6126 | -7/Factory | Garrison activated, responded to threat 6425 | -7/Factory | Identified exit to Garrison 6425 | -7/Factory | Entered Garrison 6478 | -7/Garrison | Triggered checkpoint 6524 | -7/Garrison | Garrison Relay disabled 6668 | -7/Garrison | Triggered checkpoint 6670 | -7/Garrison | Triggered checkpoint 6762 | -7/Garrison | Triggered checkpoint 6764 | -7/Garrison | Triggered checkpoint 6832 | -7/Garrison | Destroyed 10 combat bots 6835 | -7/Garrison | DAS Turret deployed 6862 | -7/Garrison | Build established: Scavenger-Mutant 6863 | -7/Garrison | Lost 11 parts (1p2n4u4w) 7000 | -7/Garrison | Garrison Relay disabled 7398 | -7/Garrison | Discovered new exit (range 15) 7479 | -7/Garrison | Triggered checkpoint 7517 | -7/Garrison | Garrison Relay disabled 7759 | -7/Garrison | Discovered new exit (range 10) 7806 | -7/Garrison | Expanded RIF knowledge: Program Shield 7829 | -7/Garrison | Build established: Bothacker-Mutant 7876 | -7/Garrison | Triggered checkpoint 7972 | -7/Garrison | Garrison Relay disabled 8268 | -7/Garrison | Garrison Relay disabled 8320 | -7/Garrison | Core integrity fell below 50% 8323 | -7/Garrison | Triggered checkpoint 8339 | -7/Garrison | Discovered new exit (range 10) 8601 | -7/Garrison | Build established: Bothacker-Tank 9235 | -7/Garrison | Build established: Hauler-Mutant 10006 | -7/Garrison | Build established: Bothacker-Mutant 10158 | -7/Garrison | Entered Factory 10158 | -7/Factory | Accompanied by 5 allies 10816 | -7/Factory | Identified exit to Garrison 10849 | -7/Factory | Garrison activated, responded to threat 10871 | -7/Factory | Found Prototype Launcher 10875 | -7/Factory | Found Prototype Launcher 10914 | -7/Factory | Entered Garrison 10914 | -7/Garrison | Accompanied by 3 allies 10954 | -7/Garrison | Triggered checkpoint 10978 | -7/Garrison | Garrison Relay disabled 11070 | -7/Garrison | Triggered checkpoint 11076 | -7/Garrison | Triggered checkpoint 11191 | -7/Garrison | Discovered new exit (range 14) 11504 | -7/Garrison | Build established: Hauler-Mutant 11572 | -7/Garrison | Discovered new exit (range 8) 11603 | -7/Garrison | Expanded RIF knowledge: Alert ID Control 11685 | -7/Garrison | Triggered checkpoint 11764 | -7/Garrison | Garrison Relay disabled 11796 | -7/Garrison | Identified Rocket Array (x2) 12070 | -7/Garrison | Build established: Hauler-Gunner 12102 | -7/Garrison | Garrison Relay disabled 12176 | -7/Garrison | Triggered checkpoint 12368 | -7/Garrison | Triggered checkpoint 12399 | -7/Garrison | Build established: Hauler-Mutant 12694 | -7/Garrison | Triggered checkpoint 12742 | -7/Garrison | Triggered checkpoint 12778 | -7/Garrison | Build established: Bothacker-Mutant 12806 | -7/Garrison | Triggered checkpoint 12837 | -7/Garrison | Core integrity fell below 20% 12894 | -7/Garrison | Discovered new exit (range 14) 13033 | -7/Garrison | Triggered checkpoint 13059 | -7/Garrison | Garrison Relay disabled 13238 | -7/Garrison | Entered Factory 13238 | -6/Factory | Accompanied by 1 ally 13238 | -6/Factory | Evolved 2 slots: Utility x2 13947 | -6/Factory | Spotted B-75 Beast 14001 | -6/Factory | Destroyed B-75 Beast 14758 | -6/Factory | Identified exit to Garrison 14759 | -6/Factory | Entered Garrison 14759 | -6/Garrison | Accompanied by 3 allies 14776 | -6/Garrison | Triggered checkpoint 14902 | -6/Garrison | Triggered checkpoint 14922 | -6/Garrison | Garrison Relay disabled 15090 | -6/Garrison | Lost 5 parts (3n1u1w) 15110 | -6/Garrison | Triggered checkpoint 15172 | -6/Garrison | Discovered new exit (range 9) 15193 | -6/Garrison | Expanded RIF knowledge: Command Fork 15264 | -6/Garrison | Triggered checkpoint 15285 | -6/Garrison | Garrison Relay disabled 15489 | -6/Garrison | Build established: Botlord-Mutant 15553 | -6/Garrison | Discovered new exit (range 14) 15602 | -6/Garrison | Triggered checkpoint 15621 | -6/Garrison | Garrison Relay disabled 15774 | -6/Garrison | Discovered new exit (range 8) 15828 | -6/Garrison | Triggered checkpoint 15869 | -6/Garrison | Garrison Relay disabled 16928 | -6/Garrison | Entered Factory 16928 | -5/Factory | Accompanied by 2 allies 16928 | -5/Factory | Evolved 2 slots: Utility x2 17118 | -5/Factory | Discovered new exit (range 12) 17515 | -5/Factory | Identified exit to Garrison 17537 | -5/Factory | Entered Garrison 17537 | -5/Garrison | Accompanied by 5 allies 17544 | -5/Garrison | Expanded RIF knowledge: Patrol Navigation 17574 | -5/Garrison | Triggered checkpoint 17595 | -5/Garrison | Garrison Relay disabled 17748 | -5/Garrison | Triggered checkpoint 17752 | -5/Garrison | Triggered checkpoint 17850 | -5/Garrison | Triggered checkpoint 17877 | -5/Garrison | Garrison Relay disabled 17912 | -5/Garrison | Discovered new exit (range 13) 18072 | -5/Garrison | Triggered checkpoint 18102 | -5/Garrison | Garrison Relay disabled 18475 | -5/Garrison | Discovered new exit (range 13) 18762 | -5/Garrison | Triggered checkpoint 18773 | -5/Garrison | Garrison Relay disabled 18815 | -5/Garrison | Discovered new exit (range 8) 18881 | -5/Garrison | Entered Factory 18881 | -4/Factory | Accompanied by 4 allies 18881 | -4/Factory | Evolved 2 slots: Utility x2 18906 | -4/Factory | Garrison activated, responded to threat 18945 | -4/Factory | Identified exit to Garrison 18958 | -4/Factory | Entered Garrison 18958 | -4/Garrison | Accompanied by 3 allies 18994 | -4/Garrison | Triggered checkpoint 19036 | -4/Garrison | Garrison Relay disabled 19085 | -4/Garrison | Spotted B-86 Titan 19254 | -4/Garrison | Triggered checkpoint 19266 | -4/Garrison | Triggered checkpoint 19268 | -4/Garrison | Triggered checkpoint 19270 | -4/Garrison | Triggered checkpoint 19270 | -4/Garrison | Destroyed B-86 Titan 19368 | -4/Garrison | Lost 4 parts (2u2w) 19405 | -4/Garrison | Lost 3 parts (1p1u1w) 19471 | -4/Garrison | Discovered new exit (range 12) 19570 | -4/Garrison | Triggered checkpoint 19828 | -4/Garrison | Discovered new exit (range 10) 19915 | -4/Garrison | Discovered new exit (range 14) 19938 | -4/Garrison | Expanded RIF knowledge: Autooverride 19968 | -4/Garrison | Triggered checkpoint 20010 | -4/Garrison | Garrison Relay disabled 20106 | -4/Garrison | Triggered checkpoint 20126 | -4/Garrison | Triggered checkpoint 20875 | -4/Garrison | Garrison Relay disabled 21013 | -4/Garrison | Garrison Relay disabled 21113 | -4/Garrison | Entered Research 21113 | -3/Research | Accompanied by 15 allies 21113 | -3/Research | Evolved 2 slots: Utility x2 21267 | -3/Research | Repaired Imp. Utility Shielding 21402 | -3/Research | Spotted B-86 Titan 21445 | -3/Research | Identified exit to Research 21656 | -3/Research | Cargo convoy interrupted 21662 | -3/Research | Spotted Striker 21681 | -3/Research | Spotted Striker 21681 | -3/Research | Spotted Striker 21695 | -3/Research | System corruption reached 10% 21703 | -3/Research | Destroyed Striker 21736 | -3/Research | Found Prototype Device 21736 | -3/Research | Identified Thermal Barrier 21743 | -3/Research | Found Prototype Processor 21743 | -3/Research | Identified Exp. Terrain Scan Processor 21746 | -3/Research | Found Prototype Launcher 21746 | -3/Research | Identified Gui. Micro-nuke Launcher 21749 | -3/Research | Found Gui. Micro-nuke Launcher 21799 | -3/Research | P-80 Master assimilated allied Administrator 6a 21870 | -3/Research | Spotted B-86 Titan 21891 | -3/Research | Identified exit to Garrison 21903 | -3/Research | System corruption reached 30% 21935 | -3/Research | Discovered new exit (range 13) 21942 | -3/Research | Core integrity fell below 50% 21948 | -3/Research | Entered Armory 21962 | -3/Armory | Core integrity fell below 20% 22004 | -3/Armory | Lost 13 parts (2p1n8u2w) 22015 | -3/Armory | Found Prototype Launcher 22017 | -3/Armory | Found Prototype Launcher 22039 | -3/Armory | Discovered exit to Research (range 6) 22039 | -3/Armory | Destroyed by Y-72 Warden with Railgun Last Messages --------------- 21977_ System corrupted: Adv. Heavy Treads rejected. 21977_ Acquired Adv. Heavy Treads. 21992_ System corrupted: Matter fused (-5). 21995_ Acquired Biometal Leg. 22015_ Acquired Prototype Launcher. 22023_ =J2XIPQUJIA1CBAPWZEOM%CT>0 22033_ Slug penetrates Wall. 22033_ Slug penetrates Door. 22037_ ALERT: Hostiles spotted, dispatching reinforcements to Terminal A006. 22038_ Slammed into Y-72 Warden. 22038_ Adv. Heavy Treads destroyed. 22038_ Penetrated by Slug. 22038_ Slug penetrates Wall. 22038_ Slug penetrates Y-72 Warden. 22038_ Slug penetrates Wall. 22038_ Penetrated by Slug. 22038_ Relay Coupler [Swarmer] destroyed. 22039_ ,KOJ/8CS34 NK1TZBM4C 22039_ EXIT=FOUND: RESEARCH Map ----- +----------------------------------------------------+ | | | | | | | | | | | | | ???????????????????????##############?????######## | | ???????????????????? #?????# | | ??????????????????# """"""" ??????# | | ??????????????????# """"""" ???????# | | ??????????????????# """"""" "" ""???????# | | ??????????????????# ""T""???????# | | ??????????????????# = """ #?????# | | ??????????????????# ####### | | ??????????##??????#########"########## ####+### | | ??????????# ############ | | ????????? | | ????????????????# """" """ ### | | ????????????????# """""" """ #?? | | ????????????????# ""F "" """ #?? | | ????????????????# """ #?? | | ????????????????# #?? | | ????????????????# #?? | | ????????????????########## ########+##+########?? | | ????????????????????????## Y##???????????????????? | | ????????????????????????#@Y #???????????????????? | | ????????????????????????# #???????????????????? | | ????????????????????????##YY##???????????????????? | | ????????????????????????? hh???????????????????? | | ????????????????????????? < ??????????????????? | | ????????????????????????? #?????????????????? | | ?????????????????????????#++####?????????????????? | | ?????????????????????????????????????????????????? | | ?????????????????????????????????????????????????? | | ?????????????????????????????????????????????????? | | ?????????????????????????????????????????????????? | | ?????????????????????????????????????????????????? | | ?????????????????????????????????????????????????? | | ?????????????????????????????????????????????????? | | ?????????????????????????????????????????????????? | | ?????????????????????????????????????????????????? | | ?????????????????????????????????????????????????? | | ?????????????????????????????????????????????????? | | ?????????????????????????????????????????????????? | | ?????????????????????????????????????????????????? | | ?????????????????????????????????????????????????? | | ?????????????????????????????????????????????????? | | ?????????????????????????????????????????????????? | | ?????????????????????????????????????????????????? | | ?????????????????????????????????????????????????? | +----------------------------------------------------+ Best States ------------- Heat Dissipation 90 Energy Generation 35 Energy Capacity 1660 Matter Stores 450 Matter Capacity 450 Sight Range 16 Terrain Scan Density 1010 Armor Coverage 900 Utility Shielding 66 Evasion (%) 55 Targeting Accuracy 5 Target Analysis 6 Recoil Reduction 2 Relay Coupler Types 8 Relay Coupler Value 146 Item Schematics ----------------- Huge Storage Unit | -10/Materials | Hacked Imp. Utility Shielding | -8/Materials | Scanalyzed Robot Schematics ------------------ None Fabricated ------------ Nothing Alien Tech Used ----------------- None Achievements -------------- None Challenges ------------ None Game ------ Seed LinkedBlastProtomatter Manual? 0 Play Time 04:54:31 Cumulative 567.5 hours Start 2022.02.18 @ 15:24:02 End 2022.02.20 @ 15:15:36 Sessions 5 Manual Loads 0 Difficulty Rogue Special Mode None Game No. 74 Rogue 74 Adventurer 0 Explorer 0 Win Type - Total 29 Types 13/4/1/0/2/1/8/0/0 Lore% 88 Gallery% 93 Achievement% 81 Wizard Run 0 Options --------- ASCII 0 Keyboard 0 Movement Numpad Keybinds 0 Fullscreen 2 Font 18/Terminus Map View 76x50 Tactical HUD 1 Map Filters NONE Filters NONE Steam 1 RUN: 1247c2ed-80a7-448e-bb01-92bce0725410